[Event "Titled Tuesday Blitz June 28 Late 2022"]
[White "Premnath, R."]
[Black "Novikova, Galina"]
[WhiteFideId "5021928"]
[BlackFideId "4157095"]
[WhiteElo "2613"]
[BlackElo "1863"]
[Result "0-1"]
[Round "09"]
[TimeControl "180+1"]
[Date "2022.06.29"]
[WhiteClock "0:00:16"]
[BlackClock "0:00:11"]

1. d4 {[%clk 0:02:59]}  Nf6 {[%clk 0:02:55]} 2. c4 {[%clk 0:02:59]}  e5 {[%clk 0:02:51]} 3. dxe5 {[%clk 0:02:59]}  Ng4 {[%clk 0:02:51]} 4. Bf4 {[%clk 0:02:58]}  Nc6 {[%clk 0:02:47]} 5. Nf3 {[%clk 0:02:58]}  Bb4+ {[%clk 0:02:47]} 6. Nbd2 {[%clk 0:02:56]}  Qe7 {[%clk 0:02:46]} 7. e3 {[%clk 0:02:56]}  O-O {[%clk 0:02:38]} 8. a3 {[%clk 0:02:49]}  Bxd2+ {[%clk 0:02:31]} 9. Qxd2 {[%clk 0:02:50]}  Ngxe5 {[%clk 0:02:31]} 10. Be2 {[%clk 0:02:47]}  d6 {[%clk 0:02:30]} 11. O-O {[%clk 0:02:43]}  Nxf3+ {[%clk 0:02:30]} 12. Bxf3 {[%clk 0:02:43]}  Ne5 {[%clk 0:02:31]} 13. Be2 {[%clk 0:02:38]}  b6 {[%clk 0:02:24]} 14. f3 {[%clk 0:02:24]}  Bb7 {[%clk 0:02:24]} 15. e4 {[%clk 0:02:24]}  f5 {[%clk 0:02:09]} 16. Bg5 {[%clk 0:02:19]}  Qf7 {[%clk 0:02:05]} 17. exf5 {[%clk 0:02:16]}  Qxf5 {[%clk 0:01:52]} 18. Rae1 {[%clk 0:02:13]}  Kh8 {[%clk 0:01:47]} 19. b3 {[%clk 0:02:11]}  Qg6 {[%clk 0:01:42]} 20. Kh1 {[%clk 0:02:10]}  Rae8 {[%clk 0:01:35]} 21. Bh4 {[%clk 0:01:58]}  h6 {[%clk 0:01:19]} 22. Bg3 {[%clk 0:01:55]}  Qf5 {[%clk 0:01:17]} 23. Rd1 {[%clk 0:01:37]}  Re7 {[%clk 0:01:07]} 24. Rfe1 {[%clk 0:01:25]}  Rfe8 {[%clk 0:01:07]} 25. Qc3 {[%clk 0:01:13]}  Qf6 {[%clk 0:01:02]} 26. f4 {[%clk 0:00:54]}  Nd7 {[%clk 0:00:54]} 27. Qd2 {[%clk 0:00:42]}  Nc5 {[%clk 0:00:50]} 28. Bh5 {[%clk 0:00:38]}  Rxe1+ {[%clk 0:00:37]} 29. Rxe1 {[%clk 0:00:28]}  Rxe1+ {[%clk 0:00:37]} 30. Qxe1 {[%clk 0:00:29]}  Ne4 {[%clk 0:00:38]} 31. h3 {[%clk 0:00:21]}  Qb2 {[%clk 0:00:28]} 32. Bh4 {[%clk 0:00:17]}  Nf6 {[%clk 0:00:22]} 33. Bf3 {[%clk 0:00:10]}  Bxf3 {[%clk 0:00:22]} 34. gxf3 {[%clk 0:00:11]}  Qxb3 {[%clk 0:00:23]} 35. Kg2 {[%clk 0:00:10]}  Qc2+ {[%clk 0:00:21]} 36. Kg1 {[%clk 0:00:10]}  Qf5 {[%clk 0:00:21]} 37. Qe3 {[%clk 0:00:07]}  Qxh3 {[%clk 0:00:20]} 38. Bxf6 {[%clk 0:00:07]}  Qg3+ {[%clk 0:00:20]} 39. Kf1 {[%clk 0:00:06]}  gxf6 {[%clk 0:00:20]} 40. Qe8+ {[%clk 0:00:05]}  Kh7 {[%clk 0:00:20]} 41. Qf7+ {[%clk 0:00:05]}  Qg7 {[%clk 0:00:21]} 42. Qh5 {[%clk 0:00:05]}  Qe7 {[%clk 0:00:19]} 43. Qf5+ {[%clk 0:00:05]}  Kg7 {[%clk 0:00:20]} 44. Qg4+ {[%clk 0:00:05]}  Kh8 {[%clk 0:00:17]} 45. Qg6 {[%clk 0:00:05]}  Qg7 {[%clk 0:00:14]} 46. Qe8+ {[%clk 0:00:05]}  Kh7 {[%clk 0:00:14]} 47. Qe4+ {[%clk 0:00:05]}  Kg8 {[%clk 0:00:12]} 48. Qe8+ {[%clk 0:00:05]}  Kh7 {[%clk 0:00:10]} 49. Qe4+ {[%clk 0:00:05]}  Kh8 {[%clk 0:00:09]} 50. Qe8+ {[%clk 0:00:05]}  Qg8 {[%clk 0:00:09]} 51. Qe7 {[%clk 0:00:05]}  Qxc4+ {[%clk 0:00:08]} 52. Kf2 {[%clk 0:00:04]}  Qc2+ {[%clk 0:00:07]} 53. Kg3 {[%clk 0:00:04]}  Qg6+ {[%clk 0:00:07]} 54. Kf2 {[%clk 0:00:04]}  Qg7 {[%clk 0:00:06]} 55. Qe8+ {[%clk 0:00:05]}  Kh7 {[%clk 0:00:07]} 56. Qe4+ {[%clk 0:00:05]}  Qg6 {[%clk 0:00:06]} 57. Qe7+ {[%clk 0:00:06]}  Kh8 {[%clk 0:00:06]} 58. Qxc7 {[%clk 0:00:05]}  Qf5 {[%clk 0:00:03]} 59. Qd8+ {[%clk 0:00:05]}  Kg7 {[%clk 0:00:04]} 60. Qxd6 {[%clk 0:00:05]}  Kg6 {[%clk 0:00:03]} 61. Qe7 {[%clk 0:00:05]}  h5 {[%clk 0:00:03]} 62. Qe8+ {[%clk 0:00:03]}  Kh6 {[%clk 0:00:03]} 63. Qh8+ {[%clk 0:00:03]}  Kg6 {[%clk 0:00:03]} 64. Qg8+ {[%clk 0:00:03]}  Kh6 {[%clk 0:00:03]} 65. Qf8+ {[%clk 0:00:03]}  Kh7 {[%clk 0:00:03]} 66. Qf7+ {[%clk 0:00:04]}  Kh6 {[%clk 0:00:03]} 67. Qf8+ {[%clk 0:00:04]}  Kh7 {[%clk 0:00:04]} 68. Qf7+ {[%clk 0:00:05]}  Kh8 {[%clk 0:00:04]} 69. Qe8+ {[%clk 0:00:05]}  Kh7 {[%clk 0:00:05]} 70. Qe7+ {[%clk 0:00:05]}  Kh6 {[%clk 0:00:04]} 71. Qxa7 {[%clk 0:00:05]}  Qc2+ {[%clk 0:00:04]} 72. Kg3 {[%clk 0:00:04]}  Qg6+ {[%clk 0:00:05]} 73. Kf2 {[%clk 0:00:05]}  h4 {[%clk 0:00:05]} 74. Qxb6 {[%clk 0:00:05]}  Qg3+ {[%clk 0:00:05]} 75. Ke3 {[%clk 0:00:05]}  Qg1+ {[%clk 0:00:05]} 76. Ke4 {[%clk 0:00:06]}  Qxb6 {[%clk 0:00:06]} 77. Kf5 {[%clk 0:00:06]}  Qc5+ {[%clk 0:00:06]} 78. Kg4 {[%clk 0:00:06]}  Qxa3 {[%clk 0:00:07]} 79. Kxh4 {[%clk 0:00:07]}  Qxf3 {[%clk 0:00:06]} 80. f5 {[%clk 0:00:07]}  Qf4+ {[%clk 0:00:06]} 81. Kh3 {[%clk 0:00:08]}  Qxf5+ {[%clk 0:00:07]} 82. Kg2 {[%clk 0:00:08]}  Qg5+ {[%clk 0:00:07]} 83. Kf3 {[%clk 0:00:09]}  f5 {[%clk 0:00:08]} 84. Kf2 {[%clk 0:00:10]}  Qg4 {[%clk 0:00:08]} 85. Ke3 {[%clk 0:00:10]}  Qg3+ {[%clk 0:00:08]} 86. Kd4 {[%clk 0:00:10]}  Qf2+ {[%clk 0:00:09]} 87. Ke5 {[%clk 0:00:11]}  f4 {[%clk 0:00:08]} 88. Kf6 {[%clk 0:00:12]}  f3 {[%clk 0:00:09]} 89. Kf5 {[%clk 0:00:13]}  Qg3 {[%clk 0:00:09]} 90. Ke4 {[%clk 0:00:13]}  f2 {[%clk 0:00:10]} 91. Kd5 {[%clk 0:00:13]}  f1=Q {[%clk 0:00:10]} 92. Ke6 {[%clk 0:00:14]}  Qge1+ {[%clk 0:00:10]} 93. Kd5 {[%clk 0:00:15]}  Qfe2 {[%clk 0:00:11]} 94. Kc5 {[%clk 0:00:15]}  Qc2+ {[%clk 0:00:11]} 95. Kb5 {[%clk 0:00:15]}  Qeb1+ {[%clk 0:00:11]} 96. Ka5 {[%clk 0:00:16]}  Qca2# {[%clk 0:00:11]} 0-1


[Site "https://www.chess.com"]

[Event "Titled Tuesday Blitz June 28 Late 2022"]
[White "Prieto Aranguren, Alain"]
[Black "Mirzoev, Azer"]
[WhiteFideId "2268906"]
[BlackFideId "13400304"]
[WhiteElo "2224"]
[BlackElo "2525"]
[Result "1-0"]
[Round "09"]
[TimeControl "180+1"]
[Date "2022.06.29"]
[WhiteClock "0:00:05"]
[BlackClock "0:00:02"]

1. e4 {[%clk 0:02:59]}  c5 {[%clk 0:02:59]} 2. d4 {[%clk 0:02:58]}  cxd4 {[%clk 0:02:59]} 3. Bd3 {[%clk 0:02:57]}  Nc6 {[%clk 0:02:58]} 4. f4 {[%clk 0:02:57]}  d5 {[%clk 0:02:56]} 5. e5 {[%clk 0:02:57]}  Nh6 {[%clk 0:02:54]} 6. Nd2 {[%clk 0:02:54]}  Bf5 {[%clk 0:02:53]} 7. Ndf3 {[%clk 0:02:53]}  e6 {[%clk 0:02:51]} 8. Ne2 {[%clk 0:02:52]}  Bb4+ {[%clk 0:02:44]} 9. Bd2 {[%clk 0:02:11]}  Qb6 {[%clk 0:02:43]} 10. Bxb4 {[%clk 0:02:04]}  Qxb4+ {[%clk 0:02:42]} 11. Qd2 {[%clk 0:02:05]}  Qxb2 {[%clk 0:02:34]} 12. O-O {[%clk 0:02:00]}  Bxd3 {[%clk 0:02:34]} 13. Qxd3 {[%clk 0:01:50]}  Qb6 {[%clk 0:02:13]} 14. Rab1 {[%clk 0:01:44]}  Qc7 {[%clk 0:02:11]} 15. Nexd4 {[%clk 0:01:39]}  Nxd4 {[%clk 0:02:08]} 16. Nxd4 {[%clk 0:01:38]}  O-O {[%clk 0:02:08]} 17. Rb5 {[%clk 0:01:29]}  a6 {[%clk 0:02:06]} 18. Rb3 {[%clk 0:01:25]}  b5 {[%clk 0:02:05]} 19. h3 {[%clk 0:01:16]}  Rfc8 {[%clk 0:01:43]} 20. Kh1 {[%clk 0:01:15]}  Qc4 {[%clk 0:01:40]} 21. g4 {[%clk 0:01:04]}  Qxd3 {[%clk 0:01:38]} 22. cxd3 {[%clk 0:00:56]}  Kh8 {[%clk 0:01:04]} 23. f5 {[%clk 0:00:51]}  exf5 {[%clk 0:00:53]} 24. g5 {[%clk 0:00:47]}  Ng8 {[%clk 0:00:52]} 25. Nxf5 {[%clk 0:00:46]}  Rc7 {[%clk 0:00:42]} 26. Nd6 {[%clk 0:00:43]}  f6 {[%clk 0:00:25]} 27. d4 {[%clk 0:00:30]}  Rf8 {[%clk 0:00:16]} 28. h4 {[%clk 0:00:27]}  Ne7 {[%clk 0:00:15]} 29. gxf6 {[%clk 0:00:17]}  gxf6 {[%clk 0:00:14]} 30. Rxf6 {[%clk 0:00:08]}  Rxf6 {[%clk 0:00:13]} 31. exf6 {[%clk 0:00:08]}  Ng6 {[%clk 0:00:10]} 32. Re3 {[%clk 0:00:07]}  Kg8 {[%clk 0:00:07]} 33. Re8+ {[%clk 0:00:05]}  Nf8 {[%clk 0:00:07]} 34. Ra8 {[%clk 0:00:04]}  Rd7 {[%clk 0:00:06]} 35. f7+ {[%clk 0:00:04]}  Kg7 {[%clk 0:00:06]} 36. Nf5+ {[%clk 0:00:03]}  Kxf7 {[%clk 0:00:06]} 37. Rxa6 {[%clk 0:00:03]}  Rb7 {[%clk 0:00:05]} 38. Rh6 {[%clk 0:00:03]}  Ra7 {[%clk 0:00:04]} 39. Rb6 {[%clk 0:00:03]}  Rxa2 {[%clk 0:00:04]} 40. Rxb5 {[%clk 0:00:04]}  Ra1+ {[%clk 0:00:04]} 41. Kg2 {[%clk 0:00:04]}  Ra2+ {[%clk 0:00:04]} 42. Kg3 {[%clk 0:00:04]}  Ra3+ {[%clk 0:00:04]} 43. Kf4 {[%clk 0:00:04]}  Ra1 {[%clk 0:00:04]} 44. Ke5 {[%clk 0:00:04]}  Re1+ {[%clk 0:00:03]} 45. Kxd5 {[%clk 0:00:04]}  Rf1 {[%clk 0:00:03]} 46. Rb7+ {[%clk 0:00:04]}  Kf6 {[%clk 0:00:03]} 47. Ne3 {[%clk 0:00:04]}  Re1 {[%clk 0:00:03]} 48. Ng4+ {[%clk 0:00:05]}  Kg6 {[%clk 0:00:02]} 49. Ne5+ {[%clk 0:00:05]}  Kh5 {[%clk 0:00:02]} 50. Rf7 {[%clk 0:00:05]} 1-0


[Site "https://www.chess.com"]

[Event "Titled Tuesday Blitz June 28 Late 2022"]
[White "Prydun, Andriy"]
[Black "Richter, Nils"]
[WhiteFideId "14145898"]
[BlackFideId "12990809"]
[WhiteElo "2063"]
[BlackElo "2311"]
[Result "0-1"]
[Round "09"]
[TimeControl "180+1"]
[Date "2022.06.29"]
[WhiteClock "0:00:28"]
[BlackClock "0:00:30"]

1. d4 {[%clk 0:02:37]}  Nf6 {[%clk 0:02:51]} 2. Nc3 {[%clk 0:02:34]}  e6 {[%clk 0:02:48]} 3. a3 {[%clk 0:02:33]}  c5 {[%clk 0:02:44]} 4. d5 {[%clk 0:02:33]}  g6 {[%clk 0:02:37]} 5. Bf4 {[%clk 0:02:32]}  Bg7 {[%clk 0:02:32]} 6. Qd2 {[%clk 0:02:23]}  O-O {[%clk 0:02:30]} 7. Bd6 {[%clk 0:02:06]}  Re8 {[%clk 0:02:26]} 8. Bxc5 {[%clk 0:02:06]}  d6 {[%clk 0:02:21]} 9. Bd4 {[%clk 0:02:03]}  e5 {[%clk 0:02:19]} 10. Be3 {[%clk 0:02:03]}  Ng4 {[%clk 0:02:14]} 11. g3 {[%clk 0:02:01]}  Nxe3 {[%clk 0:02:10]} 12. Qxe3 {[%clk 0:02:02]}  Nd7 {[%clk 0:02:08]} 13. Bg2 {[%clk 0:02:01]}  Nc5 {[%clk 0:02:06]} 14. Nf3 {[%clk 0:02:01]}  Qb6 {[%clk 0:02:06]} 15. Rb1 {[%clk 0:02:01]}  Bf5 {[%clk 0:02:03]} 16. Qd2 {[%clk 0:01:59]}  e4 {[%clk 0:01:56]} 17. Nd4 {[%clk 0:01:59]}  Bxd4 {[%clk 0:01:55]} 18. O-O {[%clk 0:01:42]}  Bg7 {[%clk 0:01:49]} 19. h3 {[%clk 0:01:38]}  e3 {[%clk 0:01:45]} 20. fxe3 {[%clk 0:01:15]}  Nd7 {[%clk 0:01:45]} 21. Nd1 {[%clk 0:01:12]}  Ne5 {[%clk 0:01:36]} 22. g4 {[%clk 0:01:09]}  Nc4 {[%clk 0:01:30]} 23. Qc1 {[%clk 0:01:08]}  Bd7 {[%clk 0:01:08]} 24. Rf3 {[%clk 0:01:03]}  f5 {[%clk 0:00:53]} 25. b3 {[%clk 0:01:00]}  Ne5 {[%clk 0:00:51]} 26. Rg3 {[%clk 0:00:59]}  fxg4 {[%clk 0:00:51]} 27. hxg4 {[%clk 0:00:58]}  Nxg4 {[%clk 0:00:51]} 28. Bh3 {[%clk 0:00:57]}  Ne5 {[%clk 0:00:46]} 29. c4 {[%clk 0:00:51]}  Bxh3 {[%clk 0:00:44]} 30. Rxh3 {[%clk 0:00:52]}  Rf8 {[%clk 0:00:43]} 31. Nc3 {[%clk 0:00:47]}  Rae8 {[%clk 0:00:37]} 32. Na4 {[%clk 0:00:36]}  Qd8 {[%clk 0:00:35]} 33. e4 {[%clk 0:00:35]}  Ng4 {[%clk 0:00:33]} 34. c5 {[%clk 0:00:28]}  Bd4+ {[%clk 0:00:30]} 0-1


[Site "https://www.chess.com"]

[Event "Titled Tuesday Blitz June 28 Late 2022"]
[White "Rustemov, Alexander"]
[Black "Przybylski, Wojciech"]
[WhiteFideId "4119002"]
[BlackFideId "1117599"]
[WhiteElo "2731"]
[BlackElo "2133"]
[Result "1-0"]
[Round "09"]
[TimeControl "180+1"]
[Date "2022.06.28"]
[WhiteClock "0:00:23"]
[BlackClock "0:00:01"]

1. d4 {[%clk 0:03:00]}  Nf6 {[%clk 0:02:50]} 2. c4 {[%clk 0:03:01]}  e6 {[%clk 0:02:50]} 3. Nf3 {[%clk 0:03:01]}  b6 {[%clk 0:02:49]} 4. a3 {[%clk 0:03:01]}  Bb7 {[%clk 0:02:47]} 5. Nc3 {[%clk 0:03:01]}  Be7 {[%clk 0:02:46]} 6. Qc2 {[%clk 0:02:56]}  d5 {[%clk 0:02:45]} 7. cxd5 {[%clk 0:02:54]}  exd5 {[%clk 0:02:44]} 8. Bg5 {[%clk 0:02:52]}  O-O {[%clk 0:02:44]} 9. e3 {[%clk 0:02:53]}  h6 {[%clk 0:02:36]} 10. Bh4 {[%clk 0:02:51]}  c5 {[%clk 0:02:35]} 11. Bd3 {[%clk 0:02:47]}  Nbd7 {[%clk 0:02:30]} 12. O-O {[%clk 0:02:46]}  Rc8 {[%clk 0:02:28]} 13. Bf5 {[%clk 0:02:41]}  a6 {[%clk 0:02:23]} 14. Rad1 {[%clk 0:02:37]}  c4 {[%clk 0:02:20]} 15. Ne5 {[%clk 0:02:36]}  Ra8 {[%clk 0:02:14]} 16. a4 {[%clk 0:02:28]}  Nb8 {[%clk 0:02:03]} 17. b3 {[%clk 0:02:23]}  cxb3 {[%clk 0:01:55]} 18. Qxb3 {[%clk 0:02:24]}  Nc6 {[%clk 0:01:51]} 19. Rb1 {[%clk 0:02:18]}  Nb4 {[%clk 0:01:28]} 20. Rfc1 {[%clk 0:02:04]}  g5 {[%clk 0:01:19]} 21. Bg3 {[%clk 0:02:04]}  Bc8 {[%clk 0:01:14]} 22. Bxc8 {[%clk 0:01:55]}  Rxc8 {[%clk 0:01:13]} 23. Na2 {[%clk 0:01:54]}  Rxc1+ {[%clk 0:00:45]} 24. Rxc1 {[%clk 0:01:53]}  Nxa2 {[%clk 0:00:43]} 25. Qxa2 {[%clk 0:01:54]}  Bd6 {[%clk 0:00:34]} 26. Nd3 {[%clk 0:01:29]}  Bxg3 {[%clk 0:00:25]} 27. hxg3 {[%clk 0:01:30]}  Ne4 {[%clk 0:00:18]} 28. Nb4 {[%clk 0:01:25]}  Nf6 {[%clk 0:00:12]} 29. Nxa6 {[%clk 0:01:24]}  Qd6 {[%clk 0:00:12]} 30. Qb3 {[%clk 0:01:16]}  Ra8 {[%clk 0:00:11]} 31. Nb4 {[%clk 0:01:16]}  Qd7 {[%clk 0:00:10]} 32. Ra1 {[%clk 0:01:12]}  Qf5 {[%clk 0:00:09]} 33. Qc2 {[%clk 0:01:04]}  Qe6 {[%clk 0:00:08]} 34. Qc6 {[%clk 0:01:02]}  h5 {[%clk 0:00:06]} 35. Qxe6 {[%clk 0:00:58]}  fxe6 {[%clk 0:00:06]} 36. f3 {[%clk 0:00:58]}  Kf7 {[%clk 0:00:05]} 37. Kf2 {[%clk 0:00:58]}  Ke7 {[%clk 0:00:06]} 38. Ke2 {[%clk 0:00:58]}  Kd6 {[%clk 0:00:05]} 39. Kd3 {[%clk 0:00:58]}  h4 {[%clk 0:00:05]} 40. g4 {[%clk 0:00:57]}  Rh8 {[%clk 0:00:03]} 41. Rc1 {[%clk 0:00:51]}  h3 {[%clk 0:00:03]} 42. Rc6+ {[%clk 0:00:50]}  Kd7 {[%clk 0:00:03]} 43. gxh3 {[%clk 0:00:50]}  Rxh3 {[%clk 0:00:03]} 44. Rxb6 {[%clk 0:00:49]}  Rxf3 {[%clk 0:00:03]} 45. a5 {[%clk 0:00:50]}  Nxg4 {[%clk 0:00:03]} 46. a6 {[%clk 0:00:50]}  Rxe3+ {[%clk 0:00:03]} 47. Kc2 {[%clk 0:00:48]}  Ra3 {[%clk 0:00:03]} 48. Rb7+ {[%clk 0:00:40]}  Kd6 {[%clk 0:00:03]} 49. Kb2 {[%clk 0:00:40]}  Ra5 {[%clk 0:00:02]} 50. Rb6+ {[%clk 0:00:37]}  Kd7 {[%clk 0:00:02]} 51. Nd3 {[%clk 0:00:30]}  Ne3 {[%clk 0:00:01]} 52. Kb3 {[%clk 0:00:26]}  Nc4 {[%clk 0:00:01]} 53. Rb7+ {[%clk 0:00:24]}  Kd6 {[%clk 0:00:01]} 54. a7 {[%clk 0:00:23]} 1-0


[Site "https://www.chess.com"]

[Event "Titled Tuesday Blitz June 28 Late 2022"]
[White "Sadhwani, Raunak"]
[Black "Bortnyk, Olexandr"]
[WhiteFideId "35093487"]
[BlackFideId "14120828"]
[WhiteElo "2616"]
[BlackElo "2723"]
[Result "0-1"]
[Round "09"]
[TimeControl "180+1"]
[Date "2022.06.28"]
[WhiteClock "0:00:12"]
[BlackClock "0:00:03"]

1. e4 {[%clk 0:03:00]}  d6 {[%clk 0:03:00]} 2. d4 {[%clk 0:03:00]}  Nf6 {[%clk 0:03:01]} 3. Nc3 {[%clk 0:03:00]}  Nbd7 {[%clk 0:03:02]} 4. Nf3 {[%clk 0:03:00]}  e5 {[%clk 0:03:02]} 5. Bc4 {[%clk 0:03:01]}  Be7 {[%clk 0:03:02]} 6. O-O {[%clk 0:03:01]}  c6 {[%clk 0:03:03]} 7. a4 {[%clk 0:03:00]}  h6 {[%clk 0:03:02]} 8. h3 {[%clk 0:03:00]}  Qc7 {[%clk 0:03:02]} 9. Re1 {[%clk 0:02:57]}  g5 {[%clk 0:03:02]} 10. d5 {[%clk 0:02:39]}  Nf8 {[%clk 0:03:00]} 11. a5 {[%clk 0:02:37]}  Ng6 {[%clk 0:02:57]} 12. a6 {[%clk 0:02:37]}  b5 {[%clk 0:02:57]} 13. Bf1 {[%clk 0:02:33]}  b4 {[%clk 0:02:57]} 14. Ne2 {[%clk 0:02:33]}  Nxe4 {[%clk 0:02:38]} 15. dxc6 {[%clk 0:02:32]}  f5 {[%clk 0:02:18]} 16. Ned4 {[%clk 0:02:04]}  exd4 {[%clk 0:02:14]} 17. Nxd4 {[%clk 0:02:05]}  O-O {[%clk 0:02:14]} 18. Bc4+ {[%clk 0:02:00]}  Kh7 {[%clk 0:02:11]} 19. Bd5 {[%clk 0:01:57]}  Rb8 {[%clk 0:02:08]} 20. Be3 {[%clk 0:01:36]}  Nf6 {[%clk 0:02:03]} 21. Be6 {[%clk 0:01:35]}  f4 {[%clk 0:02:01]} 22. Bd2 {[%clk 0:01:35]}  d5 {[%clk 0:01:47]} 23. c3 {[%clk 0:01:32]}  Bc5 {[%clk 0:01:32]} 24. Nb3 {[%clk 0:01:15]}  Qxc6 {[%clk 0:01:27]} 25. Nxc5 {[%clk 0:01:15]}  Qxc5 {[%clk 0:01:25]} 26. cxb4 {[%clk 0:01:15]}  Qb6 {[%clk 0:01:24]} 27. Bxc8 {[%clk 0:01:11]}  Rbxc8 {[%clk 0:01:25]} 28. Bc3 {[%clk 0:01:11]}  Ne4 {[%clk 0:01:13]} 29. Bd4 {[%clk 0:01:05]}  Qc7 {[%clk 0:00:42]} 30. Qg4 {[%clk 0:00:53]}  f3 {[%clk 0:00:33]} 31. g3 {[%clk 0:00:47]}  Rcd8 {[%clk 0:00:27]} 32. Rac1 {[%clk 0:00:46]}  Qd7 {[%clk 0:00:27]} 33. b5 {[%clk 0:00:32]}  Rf7 {[%clk 0:00:22]} 34. b6 {[%clk 0:00:25]}  Qxg4 {[%clk 0:00:19]} 35. hxg4 {[%clk 0:00:25]}  axb6 {[%clk 0:00:20]} 36. Bxb6 {[%clk 0:00:26]}  Ra8 {[%clk 0:00:21]} 37. a7 {[%clk 0:00:22]}  Ne5 {[%clk 0:00:21]} 38. Red1 {[%clk 0:00:20]}  Nc4 {[%clk 0:00:10]} 39. Bd4 {[%clk 0:00:20]}  Rb7 {[%clk 0:00:10]} 40. b3 {[%clk 0:00:21]}  Rxb3 {[%clk 0:00:09]} 41. Rb1 {[%clk 0:00:19]}  Ned2 {[%clk 0:00:06]} 42. Ra1 {[%clk 0:00:14]}  Rb7 {[%clk 0:00:06]} 43. Ra2 {[%clk 0:00:10]}  Nb3 {[%clk 0:00:05]} 44. Rb1 {[%clk 0:00:11]}  Kg6 {[%clk 0:00:03]} 45. Rab2 {[%clk 0:00:10]}  Nxb2 {[%clk 0:00:02]} 46. Rxb2 {[%clk 0:00:10]}  Na5 {[%clk 0:00:03]} 47. Ra2 {[%clk 0:00:09]}  Rb1+ {[%clk 0:00:02]} 48. Kh2 {[%clk 0:00:09]}  Nc6 {[%clk 0:00:02]} 49. Ra6 {[%clk 0:00:10]}  Rc1 {[%clk 0:00:03]} 50. Be3 {[%clk 0:00:10]}  Rc2 {[%clk 0:00:03]} 51. Bb6 {[%clk 0:00:10]}  Kf7 {[%clk 0:00:03]} 52. Be3 {[%clk 0:00:10]}  d4 {[%clk 0:00:03]} 53. Bxd4 {[%clk 0:00:10]}  Nxd4 {[%clk 0:00:03]} 54. Rxh6 {[%clk 0:00:11]}  Rxf2+ {[%clk 0:00:03]} 55. Kh3 {[%clk 0:00:12]}  Rf1 {[%clk 0:00:03]} 0-1


[Site "https://www.chess.com"]

[Event "Titled Tuesday Blitz June 28 Late 2022"]
[White "Silva, Miguel Antonio Neto"]
[Black "Fajdetic, Hrvoje"]
[WhiteFideId "1911929"]
[BlackFideId "14501945"]
[WhiteElo "2204"]
[BlackElo "2172"]
[Result "1/2-1/2"]
[Round "09"]
[TimeControl "180+1"]
[Date "2022.06.29"]
[WhiteClock "0:00:15"]
[BlackClock "0:00:02"]

1. d4 {[%clk 0:02:57]}  Nf6 {[%clk 0:02:58]} 2. c4 {[%clk 0:02:57]}  e5 {[%clk 0:02:57]} 3. dxe5 {[%clk 0:02:56]}  Ng4 {[%clk 0:02:58]} 4. Bf4 {[%clk 0:02:55]}  Bb4+ {[%clk 0:02:56]} 5. Nd2 {[%clk 0:02:50]}  Nc6 {[%clk 0:02:54]} 6. Nf3 {[%clk 0:02:45]}  Qe7 {[%clk 0:02:53]} 7. e3 {[%clk 0:02:45]}  Ngxe5 {[%clk 0:02:53]} 8. Nxe5 {[%clk 0:02:43]}  Nxe5 {[%clk 0:02:52]} 9. a3 {[%clk 0:02:43]}  Bxd2+ {[%clk 0:02:50]} 10. Qxd2 {[%clk 0:02:44]}  d6 {[%clk 0:02:33]} 11. Rc1 {[%clk 0:02:40]}  b6 {[%clk 0:02:31]} 12. Qc3 {[%clk 0:02:34]}  Bb7 {[%clk 0:02:28]} 13. Bxe5 {[%clk 0:02:05]}  dxe5 {[%clk 0:02:25]} 14. c5 {[%clk 0:02:05]}  O-O {[%clk 0:02:18]} 15. c6 {[%clk 0:01:51]}  Bc8 {[%clk 0:02:17]} 16. Be2 {[%clk 0:01:51]}  Bf5 {[%clk 0:02:12]} 17. O-O {[%clk 0:01:51]}  Rad8 {[%clk 0:02:10]} 18. Rfd1 {[%clk 0:01:50]}  a5 {[%clk 0:02:08]} 19. h3 {[%clk 0:01:29]}  f6 {[%clk 0:02:07]} 20. Bc4+ {[%clk 0:01:24]}  Be6 {[%clk 0:02:05]} 21. Qb3 {[%clk 0:01:24]}  Bxc4 {[%clk 0:02:01]} 22. Qxc4+ {[%clk 0:01:24]}  Kh8 {[%clk 0:02:01]} 23. Rd7 {[%clk 0:01:09]}  Rxd7 {[%clk 0:01:56]} 24. cxd7 {[%clk 0:01:08]}  Qxd7 {[%clk 0:01:57]} 25. Qxc7 {[%clk 0:01:08]}  Qxc7 {[%clk 0:01:49]} 26. Rxc7 {[%clk 0:01:09]}  Rb8 {[%clk 0:01:49]} 27. Kf1 {[%clk 0:01:09]}  h5 {[%clk 0:01:39]} 28. Ke2 {[%clk 0:01:09]}  Kh7 {[%clk 0:01:33]} 29. Kd3 {[%clk 0:01:09]}  Rd8+ {[%clk 0:01:13]} 30. Kc3 {[%clk 0:01:05]}  Rd6 {[%clk 0:01:10]} 31. h4 {[%clk 0:00:52]}  e4 {[%clk 0:00:39]} 32. Re7 {[%clk 0:00:48]}  f5 {[%clk 0:00:39]} 33. f3 {[%clk 0:00:41]}  Rd3+ {[%clk 0:00:35]} 34. Kc4 {[%clk 0:00:40]}  Rxe3 {[%clk 0:00:36]} 35. fxe4 {[%clk 0:00:40]}  fxe4 {[%clk 0:00:16]} 36. Re5 {[%clk 0:00:34]}  Re2 {[%clk 0:00:16]} 37. Rxh5+ {[%clk 0:00:33]}  Kg6 {[%clk 0:00:16]} 38. Rg5+ {[%clk 0:00:33]}  Kf6 {[%clk 0:00:17]} 39. b4 {[%clk 0:00:33]}  axb4 {[%clk 0:00:16]} 40. axb4 {[%clk 0:00:33]}  Rd2 {[%clk 0:00:16]} 41. Kc3 {[%clk 0:00:22]}  Rd6 {[%clk 0:00:13]} 42. Rg4 {[%clk 0:00:20]}  Kf5 {[%clk 0:00:12]} 43. Rxg7 {[%clk 0:00:19]}  e3 {[%clk 0:00:11]} 44. Re7 {[%clk 0:00:19]}  Kf4 {[%clk 0:00:11]} 45. Kc4 {[%clk 0:00:17]}  Rh6 {[%clk 0:00:07]} 46. g3+ {[%clk 0:00:17]}  Kf3 {[%clk 0:00:07]} 47. Kb5 {[%clk 0:00:16]}  Rg6 {[%clk 0:00:05]} 48. h5 {[%clk 0:00:15]}  Rxg3 {[%clk 0:00:04]} 49. Kxb6 {[%clk 0:00:15]}  Rh3 {[%clk 0:00:04]} 50. Re5 {[%clk 0:00:14]}  e2 {[%clk 0:00:04]} 51. b5 {[%clk 0:00:15]}  Kf2 {[%clk 0:00:04]} 52. Ka7 {[%clk 0:00:15]}  Re3 {[%clk 0:00:04]} 53. Rxe3 {[%clk 0:00:12]}  Kxe3 {[%clk 0:00:03]} 54. b6 {[%clk 0:00:13]}  e1=Q {[%clk 0:00:02]} 55. b7 {[%clk 0:00:14]}  Qa5+ {[%clk 0:00:02]} 56. Kb8 {[%clk 0:00:14]}  Qd8+ {[%clk 0:00:03]} 57. Ka7 {[%clk 0:00:15]}  Qa5+ {[%clk 0:00:03]} 58. Kb8 {[%clk 0:00:15]}  Qd8+ {[%clk 0:00:01]} 59. Ka7 {[%clk 0:00:15]}  Qa5+ {[%clk 0:00:02]} 1/2-1/2


[Site "https://www.chess.com"]